fUSD/lending_fUSD_20240826
["ID","MTS","AMOUNT","RATE_DAILY","PERIOD"]
[336006977,1724659840405,-225.4983795,0.00010899,2]
[336006978,1724659840414,-274.76679836,0.000109,2]
[336006979,1724659840571,-312.89935968,0.000109,2]
[336006980,1724659840582,-273.0,0.000109,2]
[336006981,1724659840591,-6001.63571649,0.000109,2]
[336006982,1724659840601,-158.19368247,0.000109,2]
[336006983,1724659840611,-500.0,0.00010912,2]
[336006984,1724659840620,-114.60648343,0.00010922,2]
[336006985,1724659840630,-26180.33586677,0.00010949,2]
[336006986,1724659840639,-200.0,0.00010959,2]
[336006987,1724659840649,-191.69,0.00010959,2]
[336006988,1724659840658,-162.97,0.00010959,2]
[336006989,1724659840668,-156.37,0.00010959,2]
[336006990,1724659840677,-200.0,0.00010973,2]
[336006991,1724659840686,-800.2497334,0.00010979,2]
[336006992,1724659840695,-170.801,0.00010984,2]
[336006993,1724659840705,-327.6916441,0.00010992,2]
[336006994,1724659840714,-9685.3201516,0.00010992,2]
[336006995,1724659840723,-469.542185,0.00010992,2]
[336006996,1724659840733,-2629.8623199,0.00010992,2]
[336006997,1724659840743,-14479.6509794,0.00010992,2]
[336006998,1724659840754,-520.36219453,0.00010993,2]
[336006999,1724659840764,-427.90253418,0.00010997,2]
[336007000,1724659840774,-3697.8,0.00010999,2]
[336007001,1724659840783,-150.90510273,0.00010999,2]
[336007002,1724659840792,-5919.30568265,0.00010999,2]
[336007003,1724659840807,-535.0,0.00011,2]
[336007004,1724659840816,-11142.08211981,0.00011,2]
[336007005,1724659840829,-71206.53664946,0.00011,2]
[336007006,1724659840841,-288.54346394,0.00011,2]
[336007007,1724659840852,-312.60966571,0.00011,2]
[336007008,1724659840863,-740.07,0.00011,2]
[336007009,1724659840879,-265.1286,0.00011,2]
[336007010,1724659840890,-863.3110572,0.00011,2]
[336007011,1724659840901,-635.20510333,0.00011,2]
[336007012,1724659840912,-688.15196471,0.00011,2]
[336007013,1724659840926,-10400.0,0.00011,2]
[336007014,1724659840946,-87957.95765878,0.00011,2]
[336007015,1724659840957,-30574.25639219,0.00011,2]
[336007016,1724659840977,-1209.54095137,0.00011,2]
[336007017,1724659840992,-344.194974,0.00011,2]
[336007018,1724659841002,-2232.0121732,0.00011,2]
[336007019,1724659841014,-79087.15234319,0.00011,2]
[336007020,1724659841023,-150.0,0.00011,2]
[336007021,1724659841035,-150.0,0.00011,2]
[336007022,1724659841045,-150.0,0.00011,2]
[336007023,1724659841056,-150.0,0.00011,2]
[336007024,1724659841067,-150.0,0.00011,2]
[336007025,1724659841078,-150.0,0.00011,2]
[336007026,1724659841087,-150.0,0.00011,2]
[336007027,1724659841097,-7630.94528554,0.00011,2]
[336007028,1724659841108,-1399.79399091,0.00011,2]
[336007029,1724659841119,-3193.55135642,0.00011,2]
[336007030,1724659841135,-22299.45419749,0.00011,2]
[336007031,1724659841146,-1181.8693022,0.00011,2]
[336007032,1724659841166,-469.092,0.00011,2]
[336007033,1724659841177,-23713.43801055,0.00011,2]
[336007043,1724659843323,-225.49837947,0.00010899,2]
[336007044,1724659843333,-500.0,0.00010999,2]
[336007045,1724659843343,-535.63146704,0.00010999,2]
[336007046,1724659843353,-500.0,0.00010999,2]
[336007047,1724659843363,-500.0,0.00010999,2]
[336007048,1724659843373,-500.0,0.00010999,2]
[336007049,1724659843383,-500.0,0.00010999,2]
[336007050,1724659843392,-107657.30403357,0.00011,2]
[336007051,1724659843482,-250.69,0.00010999,2]
[336007052,1724659843493,-249.31,0.00010999,2]
[336007053,1724659843503,-500.0,0.00010999,2]
[336007054,1724659843512,-500.0,0.00010999,2]
[336007055,1724659843522,-500.0,0.00010999,2]
[336007056,1724659843532,-500.0,0.00010999,2]
[336007057,1724659843541,-17667.45574928,0.00011,2]
[336007058,1724659843554,-2654.64403753,0.00011,2]
[336007059,1724659843566,-4290.41672934,0.00011,2]
[336007060,1724659843576,-1075.28624298,0.00011,2]
[336007061,1724659843619,-500.0,0.00010999,2]
[336007062,1724659843628,-500.0,0.00010999,2]
[336007063,1724659843637,-66.32182804,0.00010999,2]
[336007064,1724659843648,-433.67817196,0.00010999,2]
[336007065,1724659843657,-6370.63476049,0.00011,2]
[336007066,1724659843668,-449.242,0.00011,2]
[336007067,1724659843692,-9029.48,0.00011,2]
[336007070,1724659846266,-7895.18987708,0.00011,2]
[336007071,1724659846278,-1509.11451349,0.00011,2]
[336007072,1724659846289,-517.49928082,0.00011,2]
[336007073,1724659846306,-1394.51005659,0.00011,2]
[336007074,1724659846322,-15183.09361482,0.00011,2]
[336007075,1724659846335,-4280.59175971,0.00011,2]
[336007076,1724659846346,-2522.7804,0.00011,2]
[336007077,1724659846357,-4610.71360311,0.00011,2]
[336007078,1724659846379,-27466.2388339,0.00011,2]
[336007079,1724659846436,-1143.97892178,0.00011,2]
[336007080,1724659846447,-1891.09879631,0.00011,2]
[336007081,1724659846458,-2580.28709736,0.00011,2]
[336007082,1724659846469,-1218.66049616,0.00011,2]
[336007083,1724659846481,-3670.56546069,0.00011,2]
[336007084,1724659846493,-910.07126,0.00011,2]
[336007085,1724659846510,-225.49837947,0.00010899,2]
[336007086,1724659846519,-207.7696699,0.00011,2]
[336007087,1724659846531,-572.85,0.00011,2]
[336007088,1724659846542,-295.85754478,0.00011,2]
[336007089,1724659846556,-269.38241397,0.00011,2]
[336007093,1724660008160,175.6,9.983e-05,2]
[336007094,1724660036779,269.3,9.95e-05,2]
[336007095,1724660037458,1636.11025154,9.983e-05,2]
[336007096,1724660062151,210.52,9.933e-05,2]
[336007097,1724660094263,200.0,9.932e-05,2]
[336007098,1724660141502,1636.11025154,9.933e-05,2]
[336007099,1724660153617,472.49,9.936e-05,2]
[336007100,1724660198424,1050.0,0.0001,2]
[336007101,1724660215575,23900.0,9.983e-05,2]
[336007102,1724660251457,1636.11025154,9.936e-05,2]
[336007103,1724660263432,493.5,8.219e-05,2]
[336007104,1724660319302,250.0,9.927e-05,2]
[336007105,1724660322527,500.0,0.00017,90]
[336007106,1724660328810,500.0,0.00017,90]
[336007107,1724660351132,500.0,0.00017,90]
[336007108,1724660357299,500.0,0.00017,90]
[336007109,1724660363416,500.0,0.00017,90]
[336007110,1724660383727,633.53,9.926e-05,2]
[336007111,1724660386056,512.0,9.92e-05,2]
[336007112,1724660390556,500.0,0.00017,90]
[336007113,1724660469529,200.0,9.911e-05,2]
[336007117,1724660718090,23900.0,9.894e-05,2]
[336007118,1724660736532,21278.05531702,9.5e-05,2]
[336007120,1724660755413,23687.3712242,6.94e-05,2]
[336007121,1724660758112,496.97,8.219e-05,2]
[336007122,1724660791857,265.5949628,0.00010009,2]
[336007123,1724660803509,205.28,9.902e-05,2]
[336007124,1724660835247,26180.33586677,0.00010009,2]
[336007125,1724660848730,414.92,9.887e-05,2]
[336007126,1724660860097,1946.11818079,0.00010009,2]
[336007127,1724660868277,1299.89383055,0.00010009,2]
[336007128,1724660897290,590.4,9.896e-05,2]
[336007129,1724660924278,348.59259143,0.00010009,2]
[336007140,1724661026754,726.22,9.911e-05,2]
[336007149,1724661031417,-152.34,0.00010463,2]
[336007150,1724661031428,-496.97,0.00010471,2]
[336007151,1724661031568,-115.98022052,0.00010471,2]
[336007152,1724661031584,-388.17530602,0.00010471,2]
[336007153,1724661031594,-59.95428152,0.00010505,2]
[336007154,1724661031638,-1686.18577379,0.00010505,2]
[336007155,1724661031648,-3790.28,0.00010693,2]
[336007156,1724661031657,-150.99,0.00010713,2]
[336007157,1724661031667,-1921.99113132,0.00010713,2]
[336007158,1724661031676,-206.09877365,0.00010713,2]
[336007159,1724661031686,-300.0,0.00010735,2]
[336007160,1724661031695,-3810.15,0.00010736,2]
[336007162,1724661031705,-150.0,0.00010743,2]
[336007164,1724661031714,-293.66064152,0.00010758,2]
[336007166,1724661031723,-2563.8,0.00010758,2]
[336007168,1724661031732,-150.0,0.00010765,2]
[336007170,1724661031741,-150.0,0.00010767,2]
[336007172,1724661031750,-12442.52000744,0.0001078,2]
[336007211,1724661037682,-998.93516901,0.0001078,2]
[336007212,1724661037792,-12948.92457247,0.0001078,2]
[336007213,1724661037807,-4366.01461766,0.0001078,2]
[336007214,1724661037820,-1624.57806616,0.00010784,2]
[336007215,1724661037835,-2117.99193384,0.00010784,2]
[336007216,1724661037847,-3638.1452817,0.00010799,2]
[336007217,1724661037859,-150.0,0.00010838,2]
[336007218,1724661037871,-3220.48936274,0.00010839,2]
[336007219,1724661037890,-1287.74,0.00010839,2]
[336007220,1724661037904,-5348.55212631,0.00010839,2]
[336007221,1724661037924,-143.20851095,0.00010839,2]
[336007222,1724661037938,-1946.85496809,0.00010839,2]
[336007223,1724661037953,-1474.53373127,0.00010839,2]
[336007226,1724661039487,-299.39130064,0.00010839,2]
[336007227,1724661039500,-263.24769125,0.00010858,2]
[336007228,1724661039512,-166.39780491,0.00010861,2]
[336007229,1724661039524,-203.13728804,0.00010861,2]
[336007230,1724661039536,-270.50126924,0.00010862,2]
[336007231,1724661039548,-288.14132428,0.00010888,2]
[336007232,1724661039560,-304.23573553,0.0001089,2]
[336007233,1724661039572,-164.40811307,0.0001089,2]
[336007234,1724661039585,-155.0,0.0001089,2]
[336007235,1724661039596,-695.43794497,0.00010898,2]
[336007236,1724661039610,-2512.37633724,0.00010898,2]
[336007237,1724661039624,-588.10571779,0.00010898,2]
[336007238,1724661039636,-444.09550178,0.00010899,2]
[336007239,1724661039648,-245.76087098,0.00010899,2]
[336007240,1724661039662,-198.33463076,0.00010899,2]
[336007241,1724661039674,-547.48970731,0.00010899,2]
[336007242,1724661039687,-263.89233252,0.00010899,2]
[336007243,1724661039714,-180.20316922,0.00010899,2]
[336007244,1724661039727,-272.96273696,0.00010899,2]
[336007245,1724661039747,-171.13276478,0.00010899,2]
[336007246,1724661039760,-444.09550174,0.00010899,2]
[336007247,1724661039774,-444.09550174,0.00010899,2]
[336007248,1724661039785,-444.09550174,0.00010899,2]
[336007249,1724661039796,-590.5163,0.000109,2]
[336007250,1724661039807,-1534.08958621,0.000109,2]
[336007251,1724661039830,-20562.34591379,0.000109,2]
[336007252,1724661039839,-164.58292647,0.000109,2]
[336007253,1724661039848,-1216.47459794,0.000109,2]
[336007254,1724661039858,-500.0,0.00010912,2]
[336007255,1724661039868,-150.0,0.00010918,2]
[336007256,1724661039877,-200.0,0.00010959,2]
[336007257,1724661040097,-190.4,0.00010959,2]
[336007258,1724661040118,-500.0,0.00010973,2]
[336007259,1724661040129,-200.0,0.00010973,2]
[336007260,1724661040140,-200.0,0.00010973,2]
[336007261,1724661040150,-150.0,0.00010978,2]
[336007262,1724661040159,-155.0,0.00010979,2]
[336007263,1724661040169,-170.801,0.00010984,2]
[336007264,1724661040179,-150.0,0.00010985,2]
[336007265,1724661040197,-155.0,0.00010989,2]
[336007266,1724661040206,-10240.3065338,0.00010992,2]
[336007267,1724661040215,-505.5795538,0.00010992,2]
[336007268,1724661040226,-7788.1434084,0.00010992,2]
[336007269,1724661040234,-15657.3271058,0.00010992,2]
[336007270,1724661040244,-1041.2036888,0.00010992,2]
[336007271,1724661040254,-6062.56175124,0.00010997,2]
[336007272,1724661040263,-11838.6113653,0.00010999,2]
[336007273,1724661040272,-212199.58487784,0.00010999,2]
[336007274,1724661040282,-648.68884276,0.00010999,2]
[336007275,1724661040291,-100094.09409985,0.00011,2]
[336007276,1724661040302,-604.46,0.00011,2]
[336007277,1724661040322,-2758.2896275,0.00011,2]
[336007278,1724661040333,-413.7332465,0.00011,2]
[336007279,1724661040343,-1058.18044309,0.00011,2]
[336007280,1724661040354,-4170.03465609,0.00011,2]
[336007292,1724661042544,-155.5948001,0.00010888,2]
[336007293,1724661042554,-223.93364178,0.00010979,2]
[336007294,1724661042563,-362.97155812,0.00011,2]
[336007295,1724661042762,-444.09550174,0.00010899,2]
[336007296,1724661042771,-11403.03743712,0.00011,2]
[336007314,1724661045446,-6450.9728,0.00011,2]
[336007315,1724661045727,-6451.07353083,0.00011,2]
[336007316,1724661045738,-720.25310085,0.00011,2]
[336007317,1724661075468,11304.25,9.892e-05,2]
[336007318,1724661163820,777.44,9.891e-05,2]
[336007319,1724661209338,10000.0,0.0001,2]
[336007320,1724661264854,475.42,8.219e-05,2]
[336007321,1724661271058,500.0,0.00017,90]
[336007322,1724661299807,190.52,9.878e-05,2]
[336007323,1724661334549,357.03,9.885e-05,2]
[336007324,1724661334699,276.21,9.964e-05,2]
[336007325,1724661526020,1000.0,9.79e-05,2]
[336007326,1724661546349,1994.19,9.785e-05,2]
[336007328,1724661622063,410.1,9.851e-05,2]
[336007330,1724661628849,1800.0,9.9e-05,3]
[336007331,1724661630952,3600.0,0.0001,3]
[336007336,1724661694627,414.0853055,0.0001,2]
[336007337,1724661694822,206.26478472,0.0001,4]
[336007339,1724661704972,1051.32949098,0.0001,2]
[336007340,1724661708852,170.59001801,0.0001,2]
[336007342,1724661719275,162.86951245,0.0001,2]
[336007345,1724661745271,23900.0,9.725e-05,2]
[336007353,1724661774350,451.64,8.219e-05,2]
[336007354,1724661782680,206.52,9.733e-05,2]
[336007356,1724661792820,26290.66917841,0.00010009,2]
[336007357,1724661794949,716.41287549,9.997e-05,2]
[336007358,1724661796441,611.78022026,0.0001,2]
[336007363,1724661866468,173.39,9.707e-05,2]
[336007367,1724661901538,160.09,9.707e-05,2]
[336007371,1724661933998,1208.95,0.0001001,2]
[336007374,1724661964470,265.5949628,0.00010009,2]
[336007375,1724661979622,150.0,9.888e-05,2]
[336007377,1724662000697,1050.0,0.0001,2]
[336007380,1724662028976,1600.0,9.9e-05,3]
[336007381,1724662031063,3200.0,0.0001,3]
[336007382,1724662031138,200.0,9.752e-05,2]
[336007385,1724662057244,250.0,9.685e-05,2]
[336007388,1724662078887,200.0,9.677e-05,2]
[336007391,1724662113170,415.83,9.671e-05,2]
[336007404,1724662166341,1298.06474582,0.00010009,2]
[336007405,1724662175289,500.0,9.674e-05,2]
[336007411,1724662177857,5405.81377925,0.00010009,2]
[336007412,1724662191100,2330.14158828,0.00010009,2]
[336007413,1724662201823,500.0,0.00017,90]
[336007417,1724662210054,581.0,0.0001,10]
[336007423,1724662231607,-504.15552654,0.00010026,2]
[336007424,1724662231618,-256.00032667,0.00010097,2]
[336007425,1724662231627,-203.13728804,0.00010097,2]
[336007426,1724662231636,-816.15680778,0.000101,3]
[336007427,1724662231648,-347.40099992,0.000101,3]
[336007428,1724662231660,-3736.4421923,0.000101,3]
[336007429,1724662231791,-300.0,0.00010199,2]
[336007430,1724662231810,-2774.4563887,0.000102,3]
[336007431,1724662231822,-3725.5436113,0.000102,3]
[336007432,1724662231832,-8200.0,0.000103,3]
[336007433,1724662231842,-1609.74155178,0.0001037,2]
[336007434,1724662231854,-879.55486132,0.0001037,2]
[336007435,1724662231865,-1706.98,0.0001037,2]
[336007436,1724662231876,-814.99724662,0.0001037,2]
[336007437,1724662231891,-482.77585744,0.0001037,2]
[336007441,1724662231918,-1335.27392991,0.0001037,2]
[336007443,1724662231929,-960.92161359,0.0001037,2]
[336007471,1724662237665,-504.15552654,0.00010026,2]
[336007472,1724662237674,-669.8315416,0.0001037,2]
[336007473,1724662237685,-3351.12782822,0.0001037,2]
[336007474,1724662237696,-3374.39806952,0.0001037,2]
[336007475,1724662237705,-303.3037382,0.0001037,2]
[336007476,1724662237715,-138.96524956,0.000104,3]
[336007477,1724662237726,-1461.03475044,0.000104,3]
[336007478,1724662237736,-150.0,0.00010438,2]
[336007479,1724662237745,-451.64,0.00010462,2]
[336007480,1724662237755,-499.99,0.00010471,2]
[336007481,1724662237767,-150.99,0.00010471,2]
[336007482,1724662237776,-150.99,0.00010471,2]
[336007483,1724662237785,-205.98629954,0.00010471,2]
[336007484,1724662237795,-391.88821597,0.00010495,2]
[336007485,1724662237806,-150.0,0.00010499,2]
[336007486,1724662237816,-1600.0,0.000105,3]
[336007487,1724662237826,-155.0,0.00010566,2]
[336007488,1724662237835,-1600.0,0.000106,3]
[336007489,1724662237846,-3742.58,0.00010692,2]
[336007490,1724662237856,-2163.30666559,0.00010698,2]
[336007491,1724662237867,-667.76472037,0.00010698,2]
[336007492,1724662237878,-326.82220256,0.00010698,2]
[336007493,1724662237890,-546.35641148,0.00010698,2]
[336007494,1724662237899,-1868.85597127,0.00010699,2]
[336007495,1724662237909,-1600.0,0.000107,3]
[336007496,1724662237918,-352.09857059,0.000107,2]
[336007497,1724662237927,-1670.29157885,0.00010711,2]
[336007498,1724662237947,-503.8190057,0.00010711,2]
[336007499,1724662237959,-1357.43390719,0.00010711,2]
[336007500,1724662237974,-245.64550826,0.00010711,2]
[336007501,1724662237984,-2002.60708509,0.00010722,2]
[336007502,1724662237995,-1721.00291491,0.00010722,2]
[336007503,1724662238005,-2297.28,0.00010726,2]
[336007504,1724662238014,-3789.32,0.00010735,2]
[336007505,1724662238023,-476.58605184,0.00010751,2]
[336007506,1724662238034,-915.93487527,0.00010751,2]
[336007507,1724662238050,-1470.87908501,0.00010751,2]
[336007509,1724662238061,-834.35998788,0.00010751,2]
[336007511,1724662238070,-150.0,0.0001077,2]
[336007512,1724662238080,-195.68165799,0.00010773,2]
[336007513,1724662238090,-200.0,0.00010773,2]
[336007514,1724662238219,-200.38227572,0.00010773,2]
[336007515,1724662238231,-150.0,0.00010773,2]
[336007516,1724662238241,-1159.51117032,0.0001079,2]
[336007517,1724662238251,-322.91834938,0.000108,2]
[336007518,1724662238263,-394.12782113,0.000108,2]
[336007519,1724662238274,-585.41820824,0.000108,2]
[336007520,1724662238285,-478.03379601,0.000108,2]
[336007521,1724662238297,-3006.44051846,0.000108,2]
[336007522,1724662238308,-7442.804616,0.000108,2]
[336007523,1724662238319,-564.662132,0.000108,2]
[336007524,1724662238332,-4341.77150231,0.000108,2]
[336007525,1724662238342,-5229.62212668,0.000108,2]
[336007526,1724662238353,-2107.96685003,0.000108,2]
[336007527,1724662238364,-318.00470911,0.000108,2]
[336007528,1724662238376,-1262.14798967,0.000108,2]
[336007529,1724662238408,-21779.21936827,0.000108,2]
[336007530,1724662238419,-448.7075297,0.000108,2]
[336007531,1724662238953,-13816.91598433,0.000108,2]
[336007532,1724662239662,-299.38327936,0.00010471,2]
[336007533,1724662239675,-1035.61672064,0.000108,2]
[336007534,1724662239720,-311.6,0.000108,2]
[336007535,1724662239736,-288.82,0.000108,2]
[336007536,1724662239751,-1177.93532193,0.000108,2]
[336007537,1724662239774,-3022.97891736,0.000108,2]
[336007538,1724662239831,-695.95800116,0.000108,2]
[336007539,1724662239996,-197895.65232606,0.000108,2]
[336007540,1724662240012,-58404.38809613,0.000108,2]
[336007541,1724662240028,-8031.46605893,0.000108,2]
[336007542,1724662240042,-34686.81852785,0.000108,2]
[336007543,1724662240059,-2495.58714316,0.000108,2]
[336007544,1724662240075,-278.90148228,0.000108,2]
[336007545,1724662240090,-116805.4722822,0.000108,2]
[336007560,1724662242671,-1122.81021144,0.000108,2]
[336007561,1724662242729,-482.00237009,0.000108,2]
[336007562,1724662242740,-1326.30959715,0.000108,2]
[336007563,1724662242751,-392.29490377,0.000108,2]
[336007564,1724662242785,-461.72228719,0.000108,2]
[336007565,1724662242799,-1806.49803386,0.000108,2]
[336007566,1724662242813,-26400.76463366,0.000108,2]
[336007567,1724662242826,-52872.30343587,0.000108,2]
[336007568,1724662242838,-2193.0,0.000108,3]
[336007569,1724662242848,-150.0,0.00010806,2]
[336007570,1724662242859,-150.0,0.00010811,2]
[336007571,1724662242868,-152.93,0.00010819,2]
[336007572,1724662242877,-151.03,0.00010819,2]
[336007573,1724662242887,-155.5613345,0.00010861,2]
[336007574,1724662242896,-547.48970731,0.00010861,2]
[336007575,1724662242908,-687.65858554,0.00010861,2]
[336007576,1724662242918,-3824.21,0.00010867,2]
[336007577,1724662242929,-150.0,0.00010877,2]
[336007578,1724662242942,-166.099,0.00010898,2]
[336007579,1724662242951,-339.78,0.00010899,2]
[336007580,1724662242963,-1465.1925,0.00010899,2]
[336007581,1724662242972,-304.34341076,0.00010899,2]
[336007582,1724662242981,-3386.27557811,0.000109,2]
[336007583,1724662242991,-173.64546013,0.000109,2]
[336007584,1724662243001,-216.2722549,0.000109,2]
[336007585,1724662243010,-326.28228056,0.000109,2]
[336007586,1724662243020,-352.09857058,0.000109,2]
[336007587,1724662243029,-500.0,0.00010912,2]
[336007588,1724662243039,-150.0,0.00010943,2]
[336007589,1724662243048,-1047.26451466,0.00010949,2]
[336007590,1724662243057,-206.52,0.0001095,2]
[336007591,1724662243066,-500.0,0.00010958,2]
[336007592,1724662243075,-281.73682967,0.00010958,2]
[336007593,1724662243084,-170.86,0.00010959,2]
[336007594,1724662243095,-250.0,0.00010959,2]
[336007595,1724662243104,-200.0,0.00010971,2]
[336007596,1724662243113,-150.0,0.00010972,2]
[336007597,1724662243123,-500.0,0.00010973,2]
[336007598,1724662243132,-152.64908017,0.00010989,2]
[336007599,1724662243141,-154.17063965,0.00010989,2]
[336007600,1724662243150,-1159.51117032,0.0001099,2]
[336007601,1724662243159,-1159.51117032,0.0001099,2]
[336007602,1724662243169,-285.054125,0.00010992,2]
[336007603,1724662243178,-151.0,0.00010992,2]
[336007604,1724662243187,-285.054125,0.00010992,2]
[336007605,1724662243196,-151.0,0.00010992,2]
[336007606,1724662243206,-151.0,0.00010992,2]
[336007607,1724662243215,-151.0,0.00010992,2]
[336007608,1724662243225,-151.0,0.00010992,2]
[336007609,1724662243234,-151.0,0.00010992,2]
[336007610,1724662243243,-151.0,0.00010992,2]
[336007611,1724662243253,-151.0,0.00010992,2]
[336007612,1724662243262,-3169.713054,0.00010992,2]
[336007613,1724662243272,-3169.713054,0.00010992,2]
[336007614,1724662243281,-151.0,0.00010992,2]
[336007615,1724662243290,-151.0,0.00010992,2]
[336007616,1724662243300,-192.056815,0.00010992,2]
[336007617,1724662243311,-192.056815,0.00010992,2]
[336007618,1724662243320,-229.857182,0.00010992,2]
[336007619,1724662243330,-229.857182,0.00010992,2]
[336007620,1724662243340,-274.053225,0.00010992,2]
[336007621,1724662243349,-151.0,0.00010992,2]
[336007622,1724662243358,-274.053225,0.00010992,2]
[336007623,1724662243370,-394.37596,0.00010992,2]
[336007624,1724662243380,-394.37596,0.00010992,2]
[336007625,1724662243390,-151.0,0.00010992,2]
[336007626,1724662243399,-151.0,0.00010992,2]
[336007627,1724662243409,-151.0,0.00010992,2]
[336007628,1724662243418,-155.13815,0.00010992,2]
[336007629,1724662243428,-151.0,0.00010992,2]
[336007630,1724662243438,-155.13815,0.00010992,2]
[336007631,1724662243447,-151.0,0.00010992,2]
[336007632,1724662243456,-1594.716434,0.00010992,2]
[336007633,1724662243465,-1594.716434,0.00010992,2]
[336007634,1724662243475,-251.044689,0.00010992,2]
[336007635,1724662243485,-522.698786,0.00010992,2]
[336007636,1724662243494,-251.044689,0.00010992,2]
[336007637,1724662243504,-522.698786,0.00010992,2]
[336007638,1724662243515,-151.0,0.00010992,2]
[336007639,1724662243525,-151.0,0.00010992,2]
[336007640,1724662243534,-480.231975,0.00010992,2]
[336007641,1724662243543,-480.231975,0.00010992,2]
[336007642,1724662243552,-151.0,0.00010992,2]
[336007643,1724662243561,-544.913249,0.00010992,2]
[336007644,1724662243570,-202.957394,0.00010992,2]
[336007645,1724662243579,-175.589463,0.00010992,2]
[336007646,1724662243588,-202.957394,0.00010992,2]
[336007647,1724662243597,-544.913249,0.00010992,2]
[336007648,1724662243606,-175.589463,0.00010992,2]
[336007649,1724662243615,-151.0,0.00010992,2]
[336007650,1724662243625,-14550.6626291,0.00010992,2]
[336007651,1724662243635,-164.672563,0.00010992,2]
[336007652,1724662243645,-164.672563,0.00010992,2]
[336007653,1724662243654,-3130.776778,0.00010992,2]
[336007654,1724662243663,-3130.776778,0.00010992,2]
[336007655,1724662243672,-2711.9606673,0.00010992,2]
[336007656,1724662243681,-569.151084,0.00010992,2]
[336007657,1724662243690,-569.151084,0.00010992,2]
[336007658,1724662243698,-151.0,0.00010992,2]
[336007659,1724662243707,-1974.9189124,0.00010992,2]
[336007660,1724662243719,-5371.8687167,0.00010992,2]
[336007661,1724662243729,-1219.066772,0.00010992,2]
[336007662,1724662243739,-1219.066772,0.00010992,2]
[336007663,1724662243750,-658.775778,0.00010992,2]
[336007664,1724662243763,-658.775778,0.00010992,2]
[336007665,1724662243774,-363.314368,0.00010992,2]
[336007666,1724662243784,-363.314368,0.00010992,2]
[336007667,1724662243793,-1228.288641,0.00010992,2]
[336007668,1724662243804,-1228.288641,0.00010992,2]
[336007669,1724662243813,-151.0,0.00010992,2]
[336007670,1724662243822,-151.0,0.00010992,2]
[336007671,1724662243831,-151.0,0.00010992,2]
[336007672,1724662243841,-167.462152,0.00010992,2]
[336007673,1724662243851,-2456.7582952,0.00010992,2]
[336007674,1724662243861,-151.0,0.00010992,2]
[336007675,1724662243871,-151.0,0.00010992,2]
[336007676,1724662243880,-10000.0,0.00010992,2]
[336007677,1724662243890,-10000.0,0.00010992,2]
[336007678,1724662243899,-150.21144724,0.00010994,2]
[336007679,1724662243909,-308.3412793,0.00010997,2]
[336007680,1724662243919,-151.81644682,0.00010999,2]
[336007681,1724662243928,-2463.35594438,0.00010999,2]
[336007682,1724662243940,-200.39582248,0.00010999,2]
[336007683,1724662243949,-151.0,0.00010999,2]
[336007684,1724662243960,-202.957394,0.00010999,2]
[336007685,1724662243969,-175.589463,0.00010999,2]
[336007686,1724662243979,-544.913249,0.00010999,2]
[336007687,1724662243989,-202.957394,0.00010999,2]
[336007688,1724662243998,-175.589463,0.00010999,2]
[336007689,1724662244007,-544.913249,0.00010999,2]
[336007690,1724662244017,-151.0,0.00010999,2]
[336007691,1724662244027,-151.0,0.00010999,2]
[336007692,1724662244038,-265.5949628,0.00010999,2]
[336007693,1724662244047,-1500.0,0.00010999,2]
[336007694,1724662244056,-555.0,0.00010999,2]
[336007695,1724662244066,-410096.44401923,0.00011,2]
[336007696,1724662244079,-21220.78577,0.00011,2]
[336007697,1724662244091,-6313.79630992,0.00011,2]